[Event "Titled Tuesday Blitz July 05 Late 2022"]
[White "Salem, A.R. Saleh"]
[Black "Maghsoodloo, Parham"]
[WhiteFideId "9301348"]
[BlackFideId "12539929"]
[WhiteElo "2679"]
[BlackElo "2607"]
[Result "1-0"]
[Round "10"]
[TimeControl "180+1"]
[Date "2022.07.05"]
[WhiteClock "0:00:09"]
[BlackClock "0:00:03"]

1. d4 {[%clk 0:03:00]}  Nf6 {[%clk 0:02:58]} 2. c4 {[%clk 0:03:01]}  c6 {[%clk 0:02:57]} 3. Nc3 {[%clk 0:03:01]}  d5 {[%clk 0:02:58]} 4. Nf3 {[%clk 0:03:02]}  a6 {[%clk 0:02:56]} 5. Qc2 {[%clk 0:03:00]}  g6 {[%clk 0:02:54]} 6. Bg5 {[%clk 0:02:59]}  Bg7 {[%clk 0:02:54]} 7. cxd5 {[%clk 0:03:00]}  Nxd5 {[%clk 0:02:51]} 8. Rd1 {[%clk 0:03:01]}  h6 {[%clk 0:02:49]} 9. Bh4 {[%clk 0:02:57]}  Bf5 {[%clk 0:02:33]} 10. e4 {[%clk 0:02:56]}  Nxc3 {[%clk 0:02:33]} 11. bxc3 {[%clk 0:02:55]}  Bg4 {[%clk 0:02:33]} 12. Be2 {[%clk 0:02:54]}  Nd7 {[%clk 0:02:33]} 13. O-O {[%clk 0:02:54]}  O-O {[%clk 0:02:30]} 14. e5 {[%clk 0:02:54]}  g5 {[%clk 0:02:20]} 15. Bg3 {[%clk 0:02:51]}  e6 {[%clk 0:02:12]} 16. h4 {[%clk 0:02:33]}  Bxf3 {[%clk 0:02:12]} 17. Bxf3 {[%clk 0:02:33]}  gxh4 {[%clk 0:02:12]} 18. Bf4 {[%clk 0:02:28]}  f6 {[%clk 0:02:13]} 19. Bg4 {[%clk 0:02:20]}  fxe5 {[%clk 0:02:03]} 20. Bxe6+ {[%clk 0:02:19]}  Kh8 {[%clk 0:02:03]} 21. Bxh6 {[%clk 0:01:58]}  Bxh6 {[%clk 0:01:19]} 22. dxe5 {[%clk 0:01:58]}  Qg5 {[%clk 0:01:14]} 23. Rxd7 {[%clk 0:01:58]}  Bg7 {[%clk 0:01:14]} 24. Bh3 {[%clk 0:00:30]}  Qxe5 {[%clk 0:01:09]} 25. Rxb7 {[%clk 0:00:29]}  Rad8 {[%clk 0:01:02]} 26. Rb4 {[%clk 0:00:25]}  Rf4 {[%clk 0:00:52]} 27. Rfb1 {[%clk 0:00:23]}  a5 {[%clk 0:00:42]} 28. Rxf4 {[%clk 0:00:23]}  Qxf4 {[%clk 0:00:42]} 29. Qe2 {[%clk 0:00:21]}  Qf7 {[%clk 0:00:17]} 30. Qe4 {[%clk 0:00:18]}  Bf6 {[%clk 0:00:15]} 31. Qf4 {[%clk 0:00:18]}  Qg6 {[%clk 0:00:09]} 32. Re1 {[%clk 0:00:18]}  Qg5 {[%clk 0:00:08]} 33. Qf3 {[%clk 0:00:17]}  Kg7 {[%clk 0:00:07]} 34. Qxc6 {[%clk 0:00:16]}  Qf4 {[%clk 0:00:03]} 35. Qb7+ {[%clk 0:00:15]}  Kh6 {[%clk 0:00:04]} 36. Qe4 {[%clk 0:00:09]}  Qxe4 {[%clk 0:00:03]} 37. Rxe4 {[%clk 0:00:10]}  Rd1+ {[%clk 0:00:02]} 38. Kh2 {[%clk 0:00:10]}  Rd2 {[%clk 0:00:03]} 39. a4 {[%clk 0:00:06]}  Rxf2 {[%clk 0:00:02]} 40. Be6 {[%clk 0:00:04]}  Rc2 {[%clk 0:00:02]} 41. c4 {[%clk 0:00:04]}  Bd8 {[%clk 0:00:03]} 42. Kh3 {[%clk 0:00:04]}  Kg5 {[%clk 0:00:02]} 43. Re3 {[%clk 0:00:03]}  Bb6 {[%clk 0:00:02]} 44. Rf3 {[%clk 0:00:02]}  Rc1 {[%clk 0:00:02]} 45. Rf5+ {[%clk 0:00:03]}  Kg6 {[%clk 0:00:03]} 46. Kxh4 {[%clk 0:00:03]}  Re1 {[%clk 0:00:02]} 47. Bd7 {[%clk 0:00:03]}  Re4+ {[%clk 0:00:02]} 48. Kh3 {[%clk 0:00:02]}  Rxc4 {[%clk 0:00:03]} 49. Rd5 {[%clk 0:00:03]}  Rc3+ {[%clk 0:00:03]} 50. g3 {[%clk 0:00:03]}  Bc7 {[%clk 0:00:04]} 51. Bb5 {[%clk 0:00:02]}  Rxg3+ {[%clk 0:00:03]} 52. Kh4 {[%clk 0:00:03]}  Rc3 {[%clk 0:00:04]} 53. Kg4 {[%clk 0:00:03]}  Kf6 {[%clk 0:00:04]} 54. Rf5+ {[%clk 0:00:03]}  Ke6 {[%clk 0:00:05]} 55. Rh5 {[%clk 0:00:04]}  Be5 {[%clk 0:00:04]} 56. Rh6+ {[%clk 0:00:04]}  Kd5 {[%clk 0:00:04]} 57. Rh5 {[%clk 0:00:04]}  Kd4 {[%clk 0:00:04]} 58. Kf5 {[%clk 0:00:05]}  Rf3+ {[%clk 0:00:04]} 59. Ke6 {[%clk 0:00:05]}  Rf6+ {[%clk 0:00:05]} 60. Ke7 {[%clk 0:00:05]}  Rg6 {[%clk 0:00:05]} 61. Kf7 {[%clk 0:00:05]}  Rb6 {[%clk 0:00:05]} 62. Rh4+ {[%clk 0:00:06]}  Kd5 {[%clk 0:00:05]} 63. Rh5 {[%clk 0:00:06]}  Rb7+ {[%clk 0:00:04]} 64. Kg6 {[%clk 0:00:06]}  Rg7+ {[%clk 0:00:05]} 65. Kf5 {[%clk 0:00:07]}  Rf7+ {[%clk 0:00:05]} 66. Kg6 {[%clk 0:00:08]}  Rf2 {[%clk 0:00:05]} 67. Rh3 {[%clk 0:00:07]}  Bd4 {[%clk 0:00:05]} 68. Rh5+ {[%clk 0:00:07]}  Ke6 {[%clk 0:00:05]} 69. Bc4+ {[%clk 0:00:07]}  Ke7 {[%clk 0:00:06]} 70. Rh7+ {[%clk 0:00:07]}  Kd6 {[%clk 0:00:06]} 71. Rh5 {[%clk 0:00:08]}  Be5 {[%clk 0:00:06]} 72. Bb5 {[%clk 0:00:07]}  Rf6+ {[%clk 0:00:05]} 73. Kg5 {[%clk 0:00:07]}  Rf2 {[%clk 0:00:05]} 74. Rh6+ {[%clk 0:00:07]}  Kd5 {[%clk 0:00:05]} 75. Ra6 {[%clk 0:00:08]}  Bc3 {[%clk 0:00:05]} 76. Kg4 {[%clk 0:00:08]}  Ke4 {[%clk 0:00:05]} 77. Re6+ {[%clk 0:00:08]}  Be5 {[%clk 0:00:05]} 78. Bc6+ {[%clk 0:00:08]}  Kd4 {[%clk 0:00:06]} 79. Bb5 {[%clk 0:00:08]}  Rg2+ {[%clk 0:00:05]} 80. Kf3 {[%clk 0:00:08]}  Rg3+ {[%clk 0:00:06]} 81. Kf2 {[%clk 0:00:09]}  Ra3 {[%clk 0:00:05]} 82. Re8 {[%clk 0:00:09]}  Rc3 {[%clk 0:00:04]} 83. Re7 {[%clk 0:00:08]}  Ke4 {[%clk 0:00:05]} 84. Kg2 {[%clk 0:00:07]}  Rc2+ {[%clk 0:00:05]} 85. Kh3 {[%clk 0:00:08]}  Rh2+ {[%clk 0:00:03]} 86. Kg4 {[%clk 0:00:08]}  Rg2+ {[%clk 0:00:04]} 87. Kh5 {[%clk 0:00:08]}  Kf4 {[%clk 0:00:04]} 88. Kh6 {[%clk 0:00:08]}  Rg3 {[%clk 0:00:04]} 89. Rf7+ {[%clk 0:00:07]}  Ke4 {[%clk 0:00:05]} 90. Bc6+ {[%clk 0:00:08]}  Kd4 {[%clk 0:00:05]} 91. Rf5 {[%clk 0:00:08]}  Rc3 {[%clk 0:00:04]} 92. Bb5 {[%clk 0:00:09]}  Ke4 {[%clk 0:00:04]} 93. Rh5 {[%clk 0:00:07]}  Rg3 {[%clk 0:00:04]} 94. Rh4+ {[%clk 0:00:07]}  Bf4+ {[%clk 0:00:03]} 95. Kh7 {[%clk 0:00:07]}  Kf5 {[%clk 0:00:04]} 96. Bd7+ {[%clk 0:00:07]}  Ke5 {[%clk 0:00:04]} 97. Bb5 {[%clk 0:00:07]}  Rg1 {[%clk 0:00:03]} 98. Bd7 {[%clk 0:00:06]}  Kf6 {[%clk 0:00:02]} 99. Rxf4+ {[%clk 0:00:05]}  Ke7 {[%clk 0:00:03]} 100. Bb5 {[%clk 0:00:05]}  Rg5 {[%clk 0:00:03]} 101. Kh6 {[%clk 0:00:05]}  Rc5 {[%clk 0:00:03]} 102. Kg6 {[%clk 0:00:05]}  Kd6 {[%clk 0:00:04]} 103. Rf6+ {[%clk 0:00:05]}  Kc7 {[%clk 0:00:04]} 104. Rf5 {[%clk 0:00:06]}  Rc1 {[%clk 0:00:03]} 105. Kf6 {[%clk 0:00:06]}  Kb6 {[%clk 0:00:04]} 106. Re5 {[%clk 0:00:07]}  Rh1 {[%clk 0:00:03]} 107. Re6+ {[%clk 0:00:07]}  Kc5 {[%clk 0:00:04]} 108. Rc6+ {[%clk 0:00:07]}  Kb4 {[%clk 0:00:04]} 109. Rc4+ {[%clk 0:00:07]}  Kb3 {[%clk 0:00:05]} 110. Rd4 {[%clk 0:00:08]}  Rc1 {[%clk 0:00:04]} 111. Ke5 {[%clk 0:00:08]}  Rc8 {[%clk 0:00:04]} 112. Kd6 {[%clk 0:00:08]}  Rc1 {[%clk 0:00:04]} 113. Kd5 {[%clk 0:00:07]}  Rc8 {[%clk 0:00:04]} 114. Rf4 {[%clk 0:00:08]}  Ka3 {[%clk 0:00:03]} 115. Rc4 {[%clk 0:00:07]}  Rb8 {[%clk 0:00:02]} 116. Kc5 {[%clk 0:00:07]}  Kb3 {[%clk 0:00:03]} 117. Rg4 {[%clk 0:00:08]}  Ka3 {[%clk 0:00:02]} 118. Rg3+ {[%clk 0:00:08]}  Kb2 {[%clk 0:00:03]} 119. Rf3 {[%clk 0:00:08]}  Ka2 {[%clk 0:00:03]} 120. Kc6 {[%clk 0:00:09]}  Kb2 {[%clk 0:00:03]} 121. Kc7 {[%clk 0:00:09]} 1-0


[Site "https://www.chess.com"]

[Event "Titled Tuesday Blitz July 05 Late 2022"]
[White "Barria Santos, Jose Guilherme"]
[Black "Domingo Nunez, Ruben"]
[WhiteFideId "1939300"]
[BlackFideId "22245570"]
[WhiteElo "2263"]
[BlackElo "2373"]
[Result "1-0"]
[Round "10"]
[TimeControl "180+1"]
[Date "2022.07.05"]
[WhiteClock "0:00:25"]
[BlackClock "0:00:16"]

1. d4 {[%clk 0:03:00]}  g6 {[%clk 0:02:56]} 2. c4 {[%clk 0:03:00]}  Bg7 {[%clk 0:02:57]} 3. Nc3 {[%clk 0:03:00]}  d6 {[%clk 0:02:58]} 4. e4 {[%clk 0:03:01]}  Nd7 {[%clk 0:02:58]} 5. Be2 {[%clk 0:03:01]}  e5 {[%clk 0:02:59]} 6. Nf3 {[%clk 0:03:01]}  Ne7 {[%clk 0:02:55]} 7. O-O {[%clk 0:02:58]}  O-O {[%clk 0:02:56]} 8. d5 {[%clk 0:02:58]}  a5 {[%clk 0:02:56]} 9. a3 {[%clk 0:02:47]}  Nc5 {[%clk 0:02:55]} 10. Be3 {[%clk 0:02:45]}  f5 {[%clk 0:02:51]} 11. Ng5 {[%clk 0:02:36]}  h6 {[%clk 0:02:44]} 12. Bxc5 {[%clk 0:02:36]}  hxg5 {[%clk 0:02:44]} 13. Be3 {[%clk 0:02:35]}  g4 {[%clk 0:02:43]} 14. Bg5 {[%clk 0:02:32]}  Bf6 {[%clk 0:02:39]} 15. Qd2 {[%clk 0:02:28]}  f4 {[%clk 0:02:34]} 16. Bxf6 {[%clk 0:02:25]}  Rxf6 {[%clk 0:02:35]} 17. c5 {[%clk 0:02:18]}  dxc5 {[%clk 0:02:09]} 18. f3 {[%clk 0:02:16]}  gxf3 {[%clk 0:02:03]} 19. Bxf3 {[%clk 0:02:01]}  g5 {[%clk 0:02:02]} 20. Qe2 {[%clk 0:01:58]}  Qd7 {[%clk 0:01:49]} 21. h3 {[%clk 0:01:57]}  Qd6 {[%clk 0:01:42]} 22. Bg4 {[%clk 0:01:52]}  Kg7 {[%clk 0:01:42]} 23. Nb5 {[%clk 0:01:50]}  Qb6 {[%clk 0:01:42]} 24. a4 {[%clk 0:01:37]}  Ng8 {[%clk 0:01:31]} 25. Bxc8 {[%clk 0:01:33]}  Rxc8 {[%clk 0:01:30]} 26. Qg4 {[%clk 0:01:33]}  Re8 {[%clk 0:01:27]} 27. Qxg5+ {[%clk 0:01:19]}  Rg6 {[%clk 0:01:28]} 28. Qh4 {[%clk 0:01:19]}  Nf6 {[%clk 0:01:25]} 29. Qe1 {[%clk 0:00:50]}  Rh8 {[%clk 0:01:04]} 30. Rf3 {[%clk 0:00:50]}  c6 {[%clk 0:01:00]} 31. Nd6 {[%clk 0:00:45]}  Qxb2 {[%clk 0:01:00]} 32. Nf5+ {[%clk 0:00:46]}  Kf8 {[%clk 0:00:58]} 33. Rf2 {[%clk 0:00:35]}  Qb4 {[%clk 0:00:50]} 34. dxc6 {[%clk 0:00:35]}  bxc6 {[%clk 0:00:47]} 35. Rd2 {[%clk 0:00:27]}  Kf7 {[%clk 0:00:20]} 36. Rb1 {[%clk 0:00:25]}  Qxe4 {[%clk 0:00:18]} 37. Nd6+ {[%clk 0:00:24]}  Ke6 {[%clk 0:00:16]} 38. Nxe4 {[%clk 0:00:25]} 1-0


[Site "https://www.chess.com"]

[Event "Titled Tuesday Blitz July 05 Late 2022"]
[White "Shimanov, Aleksandr"]
[Black "Vasquez Schroeder, Rodrigo"]
[WhiteFideId "4198603"]
[BlackFideId "3400042"]
[WhiteElo "2605"]
[BlackElo "2567"]
[Result "0-1"]
[Round "10"]
[TimeControl "180+1"]
[Date "2022.07.05"]
[WhiteClock "0:00:01"]
[BlackClock "0:00:20"]

1. e4 {[%clk 0:03:00]}  c6 {[%clk 0:02:54]} 2. d4 {[%clk 0:02:49]}  d5 {[%clk 0:02:55]} 3. exd5 {[%clk 0:02:47]}  cxd5 {[%clk 0:02:55]} 4. Nf3 {[%clk 0:02:48]}  Nc6 {[%clk 0:02:53]} 5. Ne5 {[%clk 0:02:48]}  Nf6 {[%clk 0:02:51]} 6. Bb5 {[%clk 0:02:47]}  Bd7 {[%clk 0:02:51]} 7. Bxc6 {[%clk 0:02:48]}  Bxc6 {[%clk 0:02:50]} 8. O-O {[%clk 0:02:46]}  Rc8 {[%clk 0:02:49]} 9. c3 {[%clk 0:02:45]}  e6 {[%clk 0:02:49]} 10. Bg5 {[%clk 0:02:45]}  Be7 {[%clk 0:02:49]} 11. Nd2 {[%clk 0:02:45]}  Bb5 {[%clk 0:02:47]} 12. Re1 {[%clk 0:02:44]}  O-O {[%clk 0:02:47]} 13. Re3 {[%clk 0:02:44]}  h6 {[%clk 0:02:37]} 14. Bh4 {[%clk 0:02:42]}  Be8 {[%clk 0:02:29]} 15. Rg3 {[%clk 0:02:34]}  Kh8 {[%clk 0:02:12]} 16. Rh3 {[%clk 0:02:30]}  Nh7 {[%clk 0:02:07]} 17. Bxe7 {[%clk 0:02:26]}  Qxe7 {[%clk 0:02:07]} 18. Qe2 {[%clk 0:02:26]}  f6 {[%clk 0:02:03]} 19. Nd3 {[%clk 0:02:25]}  Bf7 {[%clk 0:02:02]} 20. Re3 {[%clk 0:02:25]}  Rfe8 {[%clk 0:02:01]} 21. Re1 {[%clk 0:02:23]}  Rc6 {[%clk 0:01:51]} 22. Nf4 {[%clk 0:02:21]}  Qd7 {[%clk 0:01:48]} 23. Qg4 {[%clk 0:02:18]}  g5 {[%clk 0:01:46]} 24. Nd3 {[%clk 0:02:13]}  b6 {[%clk 0:01:44]} 25. f4 {[%clk 0:02:02]}  Bg6 {[%clk 0:01:39]} 26. Qf3 {[%clk 0:01:32]}  Kg7 {[%clk 0:01:26]} 27. g4 {[%clk 0:01:26]}  Rcc8 {[%clk 0:01:21]} 28. h4 {[%clk 0:01:16]}  Bxd3 {[%clk 0:00:53]} 29. Rxd3 {[%clk 0:01:15]}  gxh4 {[%clk 0:00:46]} 30. Rde3 {[%clk 0:01:11]}  Nf8 {[%clk 0:00:43]} 31. Qf2 {[%clk 0:00:42]}  Ng6 {[%clk 0:00:39]} 32. Rf1 {[%clk 0:00:10]}  f5 {[%clk 0:00:34]} 33. gxf5 {[%clk 0:00:07]}  exf5 {[%clk 0:00:34]} 34. Nf3 {[%clk 0:00:04]}  Re4 {[%clk 0:00:34]} 35. Ne5 {[%clk 0:00:03]}  Qe6 {[%clk 0:00:31]} 36. Kh2 {[%clk 0:00:02]}  Kh7 {[%clk 0:00:30]} 37. Rxe4 {[%clk 0:00:02]}  dxe4 {[%clk 0:00:30]} 38. Rg1 {[%clk 0:00:02]}  Rg8 {[%clk 0:00:30]} 39. Nxg6 {[%clk 0:00:01]}  Rxg6 {[%clk 0:00:30]} 40. Qxh4 {[%clk 0:00:02]}  e3 {[%clk 0:00:27]} 41. Rxg6 {[%clk 0:00:01]}  Kxg6 {[%clk 0:00:27]} 42. Qg3+ {[%clk 0:00:01]}  Kf7 {[%clk 0:00:27]} 43. Kg2 {[%clk 0:00:01]}  e2 {[%clk 0:00:26]} 44. Qe1 {[%clk 0:00:01]}  Qe3 {[%clk 0:00:26]} 45. d5 {[%clk 0:00:01]}  Ke7 {[%clk 0:00:25]} 46. c4 {[%clk 0:00:01]}  a5 {[%clk 0:00:25]} 47. b3 {[%clk 0:00:02]}  Kd6 {[%clk 0:00:25]} 48. a3 {[%clk 0:00:02]}  Kc5 {[%clk 0:00:24]} 49. b4+ {[%clk 0:00:02]}  Kxc4 {[%clk 0:00:23]} 50. d6 {[%clk 0:00:02]}  Kd3 {[%clk 0:00:20]} 51. Qc1 {[%clk 0:00:01]}  Qxc1 {[%clk 0:00:20]} 0-1


[Site "https://www.chess.com"]

[Event "Titled Tuesday Blitz July 05 Late 2022"]
[White "Sibilio, Mario"]
[Black "Jorajuria Mendoza, Algol"]
[WhiteFideId "800422"]
[BlackFideId "5128897"]
[WhiteElo "2296"]
[BlackElo "1600"]
[Result "1-0"]
[Round "10"]
[TimeControl "180+1"]
[Date "2022.07.06"]
[WhiteClock "0:00:03"]
[BlackClock "0:00:03"]

1. Nf3 {[%clk 0:03:00]}  Nf6 {[%clk 0:02:59]} 2. c4 {[%clk 0:02:55]}  e6 {[%clk 0:02:58]} 3. Nc3 {[%clk 0:02:50]}  d5 {[%clk 0:02:56]} 4. d4 {[%clk 0:02:48]}  Bb4 {[%clk 0:02:55]} 5. Bg5 {[%clk 0:02:47]}  O-O {[%clk 0:02:54]} 6. e3 {[%clk 0:02:46]}  h6 {[%clk 0:02:53]} 7. Bh4 {[%clk 0:02:40]}  c5 {[%clk 0:02:52]} 8. cxd5 {[%clk 0:02:34]}  exd5 {[%clk 0:02:45]} 9. Rc1 {[%clk 0:02:24]}  g5 {[%clk 0:02:25]} 10. Bg3 {[%clk 0:02:23]}  Nc6 {[%clk 0:02:20]} 11. Bb5 {[%clk 0:02:12]}  Bg4 {[%clk 0:02:09]} 12. a3 {[%clk 0:01:37]}  Bxc3+ {[%clk 0:02:07]} 13. bxc3 {[%clk 0:01:37]}  Ne4 {[%clk 0:01:56]} 14. O-O {[%clk 0:01:21]}  Qf6 {[%clk 0:01:22]} 15. Bxc6 {[%clk 0:01:02]}  bxc6 {[%clk 0:01:20]} 16. dxc5 {[%clk 0:00:56]}  Nxg3 {[%clk 0:01:12]} 17. hxg3 {[%clk 0:00:52]}  Bxf3 {[%clk 0:01:00]} 18. gxf3 {[%clk 0:00:50]}  Rab8 {[%clk 0:00:58]} 19. Kg2 {[%clk 0:00:40]}  Rb2 {[%clk 0:00:47]} 20. Qd4 {[%clk 0:00:33]}  Kg7 {[%clk 0:00:44]} 21. e4 {[%clk 0:00:28]}  Rd8 {[%clk 0:00:31]} 22. e5 {[%clk 0:00:27]}  Qe6 {[%clk 0:00:28]} 23. f4 {[%clk 0:00:25]}  Rdb8 {[%clk 0:00:19]} 24. Rh1 {[%clk 0:00:20]}  f6 {[%clk 0:00:08]} 25. fxg5 {[%clk 0:00:18]}  fxg5 {[%clk 0:00:08]} 26. Rh5 {[%clk 0:00:11]}  Rf8 {[%clk 0:00:08]} 27. Rf1 {[%clk 0:00:09]}  Rf5 {[%clk 0:00:08]} 28. g4 {[%clk 0:00:05]}  Rxe5 {[%clk 0:00:05]} 29. Kg3 {[%clk 0:00:04]}  Rb3 {[%clk 0:00:04]} 30. f4 {[%clk 0:00:03]}  gxf4+ {[%clk 0:00:03]} 31. Rxf4 {[%clk 0:00:03]} 1-0


[Site "https://www.chess.com"]

[Event "Titled Tuesday Blitz July 05 Late 2022"]
[White "Silvestre, Christian"]
[Black "Martins, Bruno Andre Leite"]
[WhiteFideId "30956269"]
[BlackFideId "1942255"]
[WhiteElo "2351"]
[BlackElo "2282"]
[Result "1-0"]
[Round "10"]
[TimeControl "180+1"]
[Date "2022.07.06"]
[WhiteClock "0:00:11"]
[BlackClock "0:00:02"]

1. e4 {[%clk 0:02:57]}  c5 {[%clk 0:02:57]} 2. Nc3 {[%clk 0:02:56]}  d6 {[%clk 0:02:57]} 3. Bc4 {[%clk 0:02:55]}  a6 {[%clk 0:02:56]} 4. a3 {[%clk 0:02:54]}  e6 {[%clk 0:02:55]} 5. d3 {[%clk 0:02:54]}  Nc6 {[%clk 0:02:55]} 6. f4 {[%clk 0:02:54]}  Be7 {[%clk 0:02:54]} 7. Nf3 {[%clk 0:02:54]}  Nf6 {[%clk 0:02:54]} 8. O-O {[%clk 0:02:54]}  b5 {[%clk 0:02:48]} 9. Ba2 {[%clk 0:02:54]}  Qc7 {[%clk 0:02:46]} 10. Kh1 {[%clk 0:02:43]}  Bd7 {[%clk 0:02:41]} 11. Be3 {[%clk 0:02:43]}  Ng4 {[%clk 0:02:38]} 12. Bg1 {[%clk 0:02:43]}  h5 {[%clk 0:02:39]} 13. Ne2 {[%clk 0:02:41]}  Bf6 {[%clk 0:02:23]} 14. c3 {[%clk 0:02:40]}  a5 {[%clk 0:02:19]} 15. d4 {[%clk 0:02:39]}  b4 {[%clk 0:02:01]} 16. axb4 {[%clk 0:02:38]}  cxb4 {[%clk 0:01:59]} 17. c4 {[%clk 0:02:35]}  e5 {[%clk 0:01:55]} 18. fxe5 {[%clk 0:02:28]}  dxe5 {[%clk 0:01:56]} 19. d5 {[%clk 0:02:28]}  Nd8 {[%clk 0:01:28]} 20. c5 {[%clk 0:02:26]}  Bb5 {[%clk 0:01:26]} 21. d6 {[%clk 0:02:20]}  Qd7 {[%clk 0:01:20]} 22. Bd5 {[%clk 0:02:18]}  Nc6 {[%clk 0:01:19]} 23. Re1 {[%clk 0:02:10]}  a4 {[%clk 0:01:17]} 24. Ng3 {[%clk 0:02:09]}  g6 {[%clk 0:01:13]} 25. Nd2 {[%clk 0:01:30]}  h4 {[%clk 0:01:05]} 26. Ngf1 {[%clk 0:01:22]}  h3 {[%clk 0:01:05]} 27. g3 {[%clk 0:01:22]}  Rb8 {[%clk 0:00:51]} 28. Nc4 {[%clk 0:01:13]}  Bd8 {[%clk 0:00:49]} 29. Nce3 {[%clk 0:01:04]}  Nxe3 {[%clk 0:00:45]} 30. Nxe3 {[%clk 0:01:05]}  Nd4 {[%clk 0:00:44]} 31. Nc4 {[%clk 0:01:01]}  Bf6 {[%clk 0:00:28]} 32. Nxe5 {[%clk 0:00:57]}  Bxe5 {[%clk 0:00:25]} 33. Bxd4 {[%clk 0:00:56]}  Bxd4 {[%clk 0:00:22]} 34. Qxd4 {[%clk 0:00:57]}  O-O {[%clk 0:00:22]} 35. Qf6 {[%clk 0:00:55]}  Qg4 {[%clk 0:00:15]} 36. Qf4 {[%clk 0:00:51]}  Qd7 {[%clk 0:00:13]} 37. Re3 {[%clk 0:00:37]}  Rbe8 {[%clk 0:00:13]} 38. e5 {[%clk 0:00:31]}  Bc6 {[%clk 0:00:11]} 39. Qe4 {[%clk 0:00:27]}  Bxd5 {[%clk 0:00:09]} 40. Qxd5 {[%clk 0:00:28]}  Rc8 {[%clk 0:00:08]} 41. Rc1 {[%clk 0:00:20]}  a3 {[%clk 0:00:08]} 42. bxa3 {[%clk 0:00:19]}  bxa3 {[%clk 0:00:09]} 43. Rxa3 {[%clk 0:00:18]}  Rfe8 {[%clk 0:00:09]} 44. Re3 {[%clk 0:00:18]}  Qb5 {[%clk 0:00:08]} 45. Rd3 {[%clk 0:00:15]}  Rcd8 {[%clk 0:00:07]} 46. c6 {[%clk 0:00:15]}  Qb2 {[%clk 0:00:07]} 47. Rcd1 {[%clk 0:00:14]}  Rxe5 {[%clk 0:00:06]} 48. c7 {[%clk 0:00:13]}  Rf8 {[%clk 0:00:02]} 49. Qf3 {[%clk 0:00:11]} 1-0


[Site "https://www.chess.com"]

[Event "Titled Tuesday Blitz July 05 Late 2022"]
[White "So, Wesley"]
[Black "Makarian, Rudik"]
[WhiteFideId "5202213"]
[BlackFideId "44105681"]
[WhiteElo "2763"]
[BlackElo "2403"]
[Result "1-0"]
[Round "10"]
[TimeControl "180+1"]
[Date "2022.07.05"]
[WhiteClock "0:00:44"]
[BlackClock "0:00:02"]

1. d4 {[%clk 0:03:00]}  Nf6 {[%clk 0:02:59]} 2. c4 {[%clk 0:03:00]}  g6 {[%clk 0:02:59]} 3. f3 {[%clk 0:03:00]}  Bg7 {[%clk 0:02:59]} 4. e4 {[%clk 0:03:00]}  d6 {[%clk 0:03:00]} 5. Nc3 {[%clk 0:03:00]}  Nbd7 {[%clk 0:02:51]} 6. Nge2 {[%clk 0:02:59]}  a6 {[%clk 0:02:52]} 7. Be3 {[%clk 0:02:58]}  O-O {[%clk 0:02:52]} 8. Qd2 {[%clk 0:02:57]}  b5 {[%clk 0:02:52]} 9. cxb5 {[%clk 0:02:57]}  axb5 {[%clk 0:02:53]} 10. Nxb5 {[%clk 0:02:57]}  c6 {[%clk 0:02:54]} 11. Nbc3 {[%clk 0:02:57]}  e5 {[%clk 0:02:55]} 12. dxe5 {[%clk 0:02:49]}  Nxe5 {[%clk 0:02:54]} 13. Nf4 {[%clk 0:02:49]}  g5 {[%clk 0:02:46]} 14. Nd3 {[%clk 0:02:26]}  Nc4 {[%clk 0:02:45]} 15. Qf2 {[%clk 0:02:26]}  Nxe3 {[%clk 0:02:12]} 16. Qxe3 {[%clk 0:02:27]}  Qa5 {[%clk 0:02:10]} 17. Be2 {[%clk 0:02:20]}  Ba6 {[%clk 0:01:34]} 18. O-O {[%clk 0:02:18]}  Rab8 {[%clk 0:01:34]} 19. Rab1 {[%clk 0:02:15]}  Nd7 {[%clk 0:01:25]} 20. Rfc1 {[%clk 0:02:08]}  Bxd3 {[%clk 0:01:11]} 21. Bxd3 {[%clk 0:01:57]}  Nc5 {[%clk 0:01:02]} 22. Kh1 {[%clk 0:01:43]}  Ne6 {[%clk 0:01:00]} 23. Bc4 {[%clk 0:01:37]}  Qe5 {[%clk 0:00:50]} 24. Qd2 {[%clk 0:01:17]}  Rfd8 {[%clk 0:00:44]} 25. b4 {[%clk 0:01:13]}  d5 {[%clk 0:00:34]} 26. exd5 {[%clk 0:01:14]}  cxd5 {[%clk 0:00:34]} 27. Nxd5 {[%clk 0:01:09]}  Nf4 {[%clk 0:00:28]} 28. Rd1 {[%clk 0:01:02]}  Rd7 {[%clk 0:00:17]} 29. Nf6+ {[%clk 0:00:59]}  Qxf6 {[%clk 0:00:13]} 30. Qxd7 {[%clk 0:01:00]}  h5 {[%clk 0:00:12]} 31. Rd6 {[%clk 0:00:53]}  Qc3 {[%clk 0:00:12]} 32. Qxf7+ {[%clk 0:00:52]}  Kh7 {[%clk 0:00:11]} 33. Bd3+ {[%clk 0:00:45]}  Nxd3 {[%clk 0:00:08]} 34. Qf5+ {[%clk 0:00:45]}  Kh8 {[%clk 0:00:07]} 35. Qxd3 {[%clk 0:00:45]}  Rxb4 {[%clk 0:00:02]} 36. Rd8+ {[%clk 0:00:45]}  Bf8 {[%clk 0:00:02]} 37. Qxc3+ {[%clk 0:00:44]} 1-0


[Site "https://www.chess.com"]